Cogmind - Beta 9.6 @@@ ROGUE MODE // 2020.09.12 @ 15:00:42 Player: muxecoid Result: Escaped! Performance ------------- Evolutions (9) 4500 Regions Visited (31) 6200 Robots Destroyed (236) 1180 Value Destroyed (9404) 9404 Prototype IDs (66) 1320 Alien Tech Used (7) 1400 Bonus (5583) 5583 TOTAL SCORE: 29587 Bonus ------- High Alert Combat Kills 418 Follower Combat Kills 339 Met Data Miner 300 Met Imprinter 300 Destroyed Z-Imprinter 1000 Met Zhirov 300 Win 3000 Friendly Fire -74 Cogmind --------- Core Integrity 1524/1600 Matter 459/800 Energy 967/970 System Corruption 0% Temperature Cool (3) Movement Flying (25) Location To Epsilon Eridani Parts ------- > --- POWER (1) -------- Micro Fission Core > --- PROPULSION (4) --- Impulse Thruster Electron Diverter Experimental Q-thruster > --- UTILITY (18) ----- Large Storage Unit Advanced Energy Well Experimental Matter Compressor Advanced Signal Interpreter Experimental Melee Analysis Suite Advanced Core Analyzer Femtoactuators Advanced Transmission Jammer Hacking Suite Hacking Suite Hacking Suite Advanced Hacking Suite System Shield System Shield > --- WEAPON (2) ------- Plasma Lance > --- INVENTORY (10) --- Impulse Thruster Q-thruster Transdimensional Reconstructor Core Reset Matrix Subatomic Replicator Improved Potential Cannon Enhanced Gamma Bomb Array Sigix Broadsword Peak State ------------ > --- POWER ------------ (None) > --- PROPULSION ------- Electron Diverter Improved Diametric Drive Experimental Q-thruster > --- UTILITY ---------- Large Storage Unit Advanced Energy Well Experimental Matter Compressor Experimental Sensor Array Advanced Signal Interpreter Advanced Core Analyzer Advanced Transmission Jammer Reaction Control System Hacking Suite Hacking Suite Hacking Suite Advanced Hacking Suite System Shield System Shield Matter Drive > --- WEAPON ----------- Plasma Lance > --- INVENTORY -------- Impulse Thruster Core Reset Matrix Subatomic Replicator HERF Cannon Improved Potential Cannon Enhanced Gamma Bomb Array Sigix Broadsword [Rating: 144] Favorites ----------- Power Light Angular Momentum Engine Engine Light Angular Momentum Engine Power Core Micro Fission Core Reactor Light Antimatter Reactor Propulsion Experimental Cesium-ion Thruster Treads Heavy Treads Wheel Armored Huge Wheel Hover Unit Backup Propulsion I Flight Unit Experimental Cesium-ion Thruster Utility Large Storage Unit Device Long-range Sensor Array Storage Large Storage Unit Processor Advanced Signal Interpreter Hackware Hacking Suite Protection Light Regenerative Plating Artifact Matter Drive Weapon Gauss Rifle Energy Gun Small Laser Energy Cannon EM Pulse Cannon Ballistic Gun Gauss Rifle Launcher Heavy Missile Launcher Special Weapon Remote Datajack Impact Weapon Heavy Flail Slashing Weapon Great Axe Piercing Weapon Heavy Pick Build | -11 -10 -9 -9 -8 -7 -7 -7 -7 -7 -7 -6 -6 -6 -6 -6 -6 -5 -5 -5 -5 -5 -5 -5 -4 -4 -3 -3 -2 -2 -2 -1 ------- Run | Scr Mat Mat Sto Mat Fac Was Fac Low Low Dat Pro Fac Low Low Zio Dee Pro Fac Was Fac Upp Upp Zhi Pro Fac Res Tes Res Qua Sec Acc Slots Evolved 18 | . . 2 . 2 2 . . . . . . 2 . . . . . 2 . . . . . . 2 2 . 2 . . 2 Power . | . . . . . . . . . . . . . . . . . . . . . . . . . . . . . . . . Propulsion 2 | . . . . . . . . . . . . . . . . . . . . . . . . . 1 . . . . . 1 Utility 16 | . . 2 . 2 2 . . . . . . 2 . . . . . 2 . . . . . . 1 2 . 2 . . 1 Weapon . | . . . . . . . . . . . . . . . . . . . . . . . . . . . . . . . . Parts Attached 428 | 6 2 6 13 24 22 2 22 7 23 2 11 37 11 12 14 32 21 79 1 12 2 4 9 . 1 6 13 17 1 7 9 Power 25 | 1 . . 1 3 4 . 1 . 1 . . 2 1 . . 4 . 4 . 1 . . 1 . . . . . . . 1 Engine 11 | 1 . . 1 3 2 . 1 . 1 . . . 1 . . 1 . . . . . . . . . . . . . . . Core 8 | . . . . . 2 . . . . . . 2 . . . . . 1 . 1 . . 1 . . . . . . . 1 Reactor 6 | . . . . . . . . . . . . . . . . 3 . 3 . . . . . . . . . . . . . Propulsion 64 | 2 . 2 5 8 2 . 1 . 1 . . 2 1 . 3 5 . 11 . 3 . . 2 . 1 2 4 4 1 2 2 Treads 25 | . . 2 4 7 1 . . . 1 . . 2 . . . 3 . 5 . . . . . . . . . . . . . Leg . | . . . . . . . . . . . . . . . . . . . . . . . . . . . . . . . . Wheel 9 | 2 . . . . 1 . 1 . . . . . 1 . 1 . . 3 . . . . . . . . . . . . . Hover 4 | . . . . . . . . . . . . . . . . 2 . 1 . 1 . . . . . . . . . . . Flight 26 | . . . 1 1 . . . . . . . . . . 2 . . 2 . 2 . . 2 . 1 2 4 4 1 2 2 Utility 189 | 1 2 2 1 3 6 2 12 4 10 . 5 23 3 6 7 16 9 39 . 4 1 2 6 . . 3 7 9 . 2 4 Device 64 | . . . . . 2 . 5 1 3 . 2 7 1 4 1 3 7 13 . 2 . 2 2 . . 1 1 3 . 1 3 Storage 42 | 1 2 2 . 2 1 2 1 . . . 2 3 2 1 5 6 . 5 . . . . 2 . . . 2 3 . . . Processor 11 | . . . . . 1 . . . . . . . . . . 2 . 3 . . 1 . . . . 1 1 1 . . 1 Hackware 17 | . . . . . . . 1 . . . . 3 . . . . . 4 . 2 . . 1 . . 1 3 2 . . . Protection 54 | . . . 1 1 2 . 5 3 7 . 1 10 . 1 1 5 2 14 . . . . 1 . . . . . . . . Artifact 1 | . . . . . . . . . . . . . . . . . . . . . . . . . . . . . . 1 . Weapon 150 | 2 . 2 6 10 10 . 8 3 11 2 6 10 6 6 4 7 12 25 1 4 1 2 . . . 1 2 4 . 3 2 Energy Gun 16 | 1 . . 2 2 . . . . . . . 1 . . . 2 2 6 . . . . . . . . . . . . . Energy Cannon 32 | . . . . . 1 . 3 . 4 1 1 2 . 2 . 1 1 9 . 2 . . . . . 1 . . . 2 2 Ballistic Gun 50 | 1 . 2 3 6 4 . 1 2 4 1 2 4 1 1 3 3 3 6 1 1 . . . . . . 1 . . . . Ballistic Cannon . | . . . . . . . . . . . . . . . . . . . . . . . . . . . . . . . . Launcher 26 | . . . . 2 1 . 1 . 1 . 2 2 4 2 . 1 4 2 . 1 . . . . . . . 2 . 1 . Special Weapon 3 | . . . . . 2 . . . . . . . . . . . 1 . . . . . . . . . . . . . . Impact Weapon 2 | . . . 1 . 1 . . . . . . . . . . . . . . . . . . . . . . . . . . Slashing Weapon 16 | . . . . . 1 . 3 1 2 . 1 1 1 1 1 . 1 2 . . 1 . . . . . . . . . . Piercing Weapon 5 | . . . . . . . . . . . . . . . . . . . . . . 2 . . . . 1 2 . . . Special Melee Weapon . | . . . . . . . . . . . . . . . . . . . . . . . . . . . . . . . . Unidentified Prototypes 31 | . . . 2 2 . . . . . . . 1 . 1 . 6 1 1 . 1 . . 5 . . 2 3 1 1 4 . Parts Lost 105 | . . 4 1 7 2 . 2 . 2 . 1 6 . 3 . 4 1 44 . 5 . . . . . 6 7 2 1 3 4 Power 15 | . . . . 3 2 . 1 . 1 . . 2 . . . . . 5 . . . . . . . . 1 . . . . Propulsion 19 | . . 2 . 2 . . . . . . . 1 . . . . . 8 . 1 . . . . . 1 2 . . 1 1 Utility 36 | . . . . . . . . . . . . 1 . . . 2 1 16 . 4 . . . . . 4 2 2 1 1 2 Weapon 35 | . . 2 1 2 . . 1 . 1 . 1 2 . 3 . 2 . 15 . . . . . . . 1 2 . . 1 1 Highest Loss Streak 19 | . . 3 1 4 1 . 1 . 2 . 1 5 . 2 . 3 1 19 . 2 . . . . . 5 5 1 1 3 2 Average Slot Usage (%) 91 | . 90 100 99 99 99 92 91 92 91 77 87 97 99 92 81 85 92 91 59 80 74 87 99 100 94 79 85 74 83 77 80 Engine 3 | . 14 11 11 9 5 7 7 7 6 7 7 1 2 6 6 3 . . . . . . . . . . . . . . . Core 1 | . . . . . 1 . . . . . . 4 3 . . . . . 5 5 5 5 5 5 5 4 3 . . . . Treads 5 | . . 11 21 17 14 . . . 2 7 7 10 12 . . 5 6 3 . . . . . . . . . . . . . Wheel 2 | . 28 10 . . . 7 6 7 4 . . . . 6 5 . . 2 . . . . . . . . . . . . . Flight 2 | . . . . . . . . . . . . . . . 1 . . . 11 8 11 11 11 11 15 9 9 11 9 10 15 Device 8 | . . . . . 4 12 5 6 6 7 6 4 5 5 5 9 12 8 5 17 11 16 23 23 21 14 4 6 8 9 10 Storage 27 | . 19 44 38 36 30 27 38 38 38 38 38 33 33 38 29 22 33 29 11 11 11 11 11 11 10 7 6 10 17 15 12 Processor 7 | . . . . . . 7 7 7 7 7 7 6 6 6 6 16 12 5 11 11 15 17 11 11 10 12 17 12 12 8 10 Hackware 7 | . . . . . . . 2 7 4 . . 11 6 . . . . 11 11 11 11 11 16 17 15 16 29 27 30 28 24 Protection 8 | . . . 5 18 25 12 5 . 3 7 7 8 13 13 14 8 7 8 . . . . 4 5 5 4 3 . . . . Ballistic Gun 6 | . 14 13 19 15 11 15 10 14 10 . 3 7 5 . 7 10 8 4 1 . . . . . . . 2 . . . . Slashing Weapon 1 | . . . . . . . 2 . . . 2 4 4 4 2 . . . . . 1 5 . . . . . . . . . Piercing Weapon 1 | . . . . . . . . . . . . . . . . . . . . . . 4 11 11 10 7 3 3 4 4 4 Naked Turns . | . . . . . . . . . . . . . . . . . . . . . . . . . . . . . . . . Heaviest Build 170 | 11 39 74 74 89 99 99 120 118 126 122 123 155 122 128 155 158 135 170 16 38 21 20 21 20 20 22 35 37 34 45 36 Greatest Support 70 | 20 20 43 43 40 48 28 28 28 70 70 70 70 48 28 28 70 70 70 16 32 24 24 26 24 33 44 40 34 35 35 40 Greatest Overweight (x) 39 | 1 1 3 3 4 3 3 4 4 4 1 1 3 4 4 5 39 1 8 . 1 . . . . . . . 12 . 1 . Average Overweight (x) 1 | . . 2 1 1 1 2 3 4 3 1 1 1 2 4 3 1 1 2 . . . . . . . . . . . . . Largest Inventory Capacity 40 | 6 16 28 28 28 28 34 36 36 36 36 36 40 36 36 36 36 36 36 4 4 4 4 4 4 4 4 10 14 14 14 10 Average Capacity 26 | 5 9 27 25 27 27 25 35 36 36 36 36 36 36 36 32 23 36 34 4 4 4 4 4 4 4 4 6 11 14 12 10 Most Carried 36 | 4 12 13 22 28 28 34 36 36 36 36 36 36 36 36 36 36 36 36 4 4 4 4 4 4 3 4 10 13 14 14 10 Average Carried 24 | 1 5 11 19 24 27 25 35 36 35 36 35 33 35 35 30 21 35 33 3 3 4 4 3 4 3 3 5 10 13 12 9 Final Capacity 36 | 6 16 28 22 28 22 34 36 36 36 36 36 36 36 36 36 36 36 4 4 4 4 4 4 4 4 4 10 14 14 10 10 Final Carried 36 | 4 12 12 22 28 22 34 36 36 36 36 36 36 36 35 34 36 36 4 4 4 4 4 4 4 3 4 10 13 14 10 10 Class Distribution -------------------- 70% | Hauler-Mutant 13% | Hacker-Sprinter 7% | Wizard-Sprinter 3% | Scavenger-Mutant Dominant Class ---------------- Mutant | -10/Materials Hauler-Mutant | -9/Materials Hauler-Mutant | -9/Storage Hauler-Mutant | -8/Materials Hauler-Mutant | -7/Factory Hauler-Mutant | -7/Waste Hauler-Mutant | -7/Factory Hauler-Mutant | -7/Lower Caves Hauler-Mutant | -7/Lower Caves Hauler-Mutant | -7/Data Miner Hauler-Mutant | -6/Proximity Caves Hauler-Mutant | -6/Factory Hauler-Mutant | -6/Lower Caves Hauler-Mutant | -6/Lower Caves Hauler-Mutant | -6/Zion Hauler-Mutant | -6/Deep Caves Hauler-Mutant | -5/Proximity Caves Hauler-Mutant | -5/Factory Hacker-Sprinter | -5/Waste Hacker-Mutant | -5/Factory Hacker-Sprinter | -5/Upper Caves Hacker-Sprinter | -5/Upper Caves Hacker-Sprinter | -5/Zhirov Hacker-Sprinter | -4/Proximity Caves Hacker-Sprinter | -4/Factory Hacker-Sprinter | -3/Research Wizard-Mutant | -3/Testing Wizard-Sprinter | -2/Research Wizard-Sprinter | -2/Quarantine Wizard-Sprinter | -2/Section 7 Wizard-Sprinter | -1/Access Resources | -11 -10 -9 -9 -8 -7 -7 -7 -7 -7 -7 -6 -6 -6 -6 -6 -6 -5 -5 -5 -5 -5 -5 -5 -4 -4 -3 -3 -2 -2 -2 -1 ----------- Run | Scr Mat Mat Sto Mat Fac Was Fac Low Low Dat Pro Fac Low Low Zio Dee Pro Fac Was Fac Upp Upp Zhi Pro Fac Res Tes Res Qua Sec Acc Matter Collected 8285 | 231 13 142 289 802 653 378 303 109 352 . 173 614 280 349 128 492 486 1189 . . 97 148 245 . . . . 242 283 48 239 Remotely . | . . . . . . . . . . . . . . . . . . . . . . . . . . . . . . . . Salvage Created 12031 | . 161 292 511 1001 813 1498 446 43 264 . 199 791 205 564 . 422 497 3038 . 63 . 47 275 . . . . 268 283 48 302 Parts 528 | . 9 17 49 56 48 30 25 4 17 . 7 33 16 20 . 14 18 120 . 1 . 1 3 . . . . 5 10 4 21 Haulers Intercepted 2 | . . . . 1 . . . . . . . . . 1 . . . . . . . . . . . . . . . . . Recyclers Shooed 15 | . . . . 2 2 . . . . . . 3 . . . . . 8 . . . . . . . . . . . . . Parts Field Recycled 2 | . . . . . . . . . . . . . . . . . . . . 2 . . . . . . . . . . . Retrieved Matter 35 | . . . . . . . . . . . . . . . . . . . . 35 . . . . . . . . . . . Parts Self-Destructed 47 | . . . . . . . . 4 14 . 2 . 8 5 . . 12 . . . . . 2 . . . . . . . . Prevented 35 | . . . . . . . . . 12 . 7 . 2 14 . . . . . . . . . . . . . . . . . Kills | -11 -10 -9 -9 -8 -7 -7 -7 -7 -7 -7 -6 -6 -6 -6 -6 -6 -5 -5 -5 -5 -5 -5 -5 -4 -4 -3 -3 -2 -2 -2 -1 ------- Run | Scr Mat Mat Sto Mat Fac Was Fac Low Low Dat Pro Fac Low Low Zio Dee Pro Fac Was Fac Upp Upp Zhi Pro Fac Res Tes Res Qua Sec Acc Combat Hostiles Destroyed 193 | . 5 4 14 23 17 6 10 1 5 . 3 13 12 7 . 7 20 39 . 1 . . . . . . . 3 . . 3 Melee 9 | . . . . . . . 2 . 2 . . 1 . . . . . 1 . . . . . . . . . . . . 3 Guns 99 | . 3 4 14 18 14 6 4 1 2 . 1 7 1 . . 4 4 16 . . . . . . . . . . . . . Cannons 14 | . . . . . 1 . 3 . . . . 1 . 1 . . . 7 . 1 . . . . . . . . . . . AOE 61 | . 2 . . 5 2 . 1 . . . 1 3 11 3 . 3 16 11 . . . . . . . . . 3 . . . Classes Destroyed 19 | . 3 3 2 3 1 1 . . 1 . . . . . . 3 . 2 . . . . . . . . . . . . . Worker 8 | . . 2 . . 1 . . . . . . 1 . . . . . 4 . . . . . . . . . . . . . Builder 12 | . 1 . . . . . 1 . . . . 2 . . . . . 8 . . . . . . . . . . . . . Hauler 2 | . . . . 1 . . . . . . . . . 1 . . . . . . . . . . . . . . . . . Recycler 12 | . . 1 . 1 2 . . . . . . . . . . . . 4 . . . . . . . . . 2 2 . . Operator 1 | . 1 . . . . . . . . . . . . . . . . . . . . . . . . . . . . . . Watcher 4 | . . . 1 . . . . . . . . . . . . . . . . . . . . . . . . . 1 1 1 Swarmer 51 | . . . 6 8 6 . 3 . . . . . 12 . . . 8 5 . . . . . . . . . 3 . . . Saboteur 1 | . . . . . . . . . . . . . . . . . . 1 . . . . . . . . . . . . . Grunt 64 | . 5 2 3 3 7 . 3 . 1 . 2 6 . 5 . . 11 14 . 1 . . . . . . . . . . 1 Brawler 1 | . . . . . . . . . . . . . . . . . . 1 . . . . . . . . . . . . . Duelist 4 | . . . . 1 . . . . . . . . . . . . . 3 . . . . . . . . . . . . . Sentry 28 | . . 2 5 9 1 . 2 . . . . 2 . . . . . 6 . . . . . . . . . . . . 1 Hunter 12 | . . . . 2 . . 1 . 1 . 1 2 . 2 . . 1 2 . . . . . . . . . . . . . Programmer 17 | . . . . . 3 . 1 1 1 . . 3 . . . . . 7 . . . . . . . . . . . . 1 Behemoth 1 | . . . . . . . . . 1 . . . . . . . . . . . . . . . . . . . . . . Compactor 6 | . . . . . . 6 . . . . . . . . . . . . . . . . . . . . . . . . . Z-Technician 4 | . . . . . . . . . . . . . . . . 4 . . . . . . . . . . . . . . . Z-Light 1 | . . . . . . . . . . . . . . . . 1 . . . . . . . . . . . . . . . Assembled 4 | . . . . . . . . . . . . . . . . 4 . . . . . . . . . . . . . . . Golem 2 | . . . . . . . . . . . . . . . . 2 . . . . . . . . . . . . . . . Thug 1 | . . . . . . . . . 1 . . . . . . . . . . . . . . . . . . . . . . Best Kill Streak 21 | . 5 5 3 5 3 1 5 1 2 . 2 5 4 5 . 3 5 21 . 1 . . . . . . . 3 2 1 1 Combat Bots Only 14 | . 3 2 3 5 3 1 4 1 2 . 2 4 4 5 . 3 5 14 . 1 . . . . . . . 3 . . 1 Max Kills in Single Turn 3 | . 3 1 1 2 2 1 2 1 1 . 1 3 3 2 . 2 3 3 . 1 . . . . . . . 2 1 1 1 Gunslinging 1 | . . . . 1 . . . . . . . . . . . . . 1 . . . . . . . . . . . . . Exploded 3 | . 2 . . 2 1 . 1 . . . 1 3 3 2 . 2 3 3 . . . . . . . . . 2 . . . Melee 1 | . . . . . . . 1 . 1 . . 1 . . . . . 1 . . . . . . . . . . . . 1 Uniques/NPCs Destroyed 1 | . . . . . . . . . . . . . . . . 1 . . . . . . . . . . . . . . . Z-Imprinter (-6/Deep Caves) Combat | -11 -10 -9 -9 -8 -7 -7 -7 -7 -7 -7 -6 -6 -6 -6 -6 -6 -5 -5 -5 -5 -5 -5 -5 -4 -4 -3 -3 -2 -2 -2 -1 -------- Run | Scr Mat Mat Sto Mat Fac Was Fac Low Low Dat Pro Fac Low Low Zio Dee Pro Fac Was Fac Upp Upp Zhi Pro Fac Res Tes Res Qua Sec Acc Damage Taken 21086 | . 126 242 582 1657 1335 . 893 15 1007 . 200 2165 147 936 . 2006 626 5436 . 411 . . . 181 28 657 754 414 144 846 278 Core 2640 | . 32 28 48 137 96 . 166 . 43 . . 186 16 92 . 50 75 744 . 113 . . . 76 . 102 179 131 70 180 76 Absorbed by Shields 311 | . . . . . . . . . . . . . . . . . . 311 . . . . . . . . . . . . . Reduced by Siege Mode 55 | . . . . . . . . . 24 . . 31 . . . . . . . . . . . . . . . . . . . Core Remaining (%) 73 | 100 87 . 81 75 . . . . . . 56 . . . . . 50 . . . . . . 6 100 . 78 . . 76 95 Volleys Fired 603 | . 22 19 38 78 60 53 22 1 22 . 6 50 8 28 . 39 23 120 . 8 . . . . . . . 2 . 4 . Largest 2 | . 2 2 2 2 2 2 2 2 2 . 2 2 2 2 . 2 2 2 . 1 . . . . . . . 1 . 1 . Hottest 162 | . 60 60 60 96 93 56 103 48 132 . 72 103 72 120 . 118 103 162 . 98 . . . . . . . 52 . 88 . Shots Fired 1088 | . 42 37 76 152 117 106 43 2 32 . 10 86 13 42 . 76 29 211 . 8 . . . . . . . 2 . 4 . Gun 858 | . 42 37 76 147 111 106 26 2 14 . 2 74 4 14 . 72 12 119 . . . . . . . . . . . . . Cannon 141 | . . . . . 2 . 16 . 14 . . 8 . 18 . 2 . 70 . 8 . . . . . . . . . 3 . Launcher 86 | . . . . 5 2 . 1 . 4 . 8 4 9 10 . 2 16 22 . . . . . . . . . 2 . 1 . Special 3 | . . . . . 2 . . . . . . . . . . . 1 . . . . . . . . . . . . . . Kinetic 757 | . 22 22 72 124 111 106 26 2 14 . 2 65 4 14 . 58 9 106 . . . . . . . . . . . . . Thermal 167 | . 20 15 4 23 2 . 16 . 3 . . 17 . 8 . 2 3 46 . 8 . . . . . . . . . . . Explosive 39 | . . . . 4 2 . 1 . 4 . . . 5 . . 2 16 2 . . . . . . . . . 2 . 1 . Electromagnetic 122 | . . . . 1 . . . . 11 . 8 4 4 20 . 14 . 57 . . . . . . . . . . . 3 . Robot Hit Streak 23 | . 8 7 18 23 10 8 8 1 18 . 6 11 5 9 . 13 7 18 . 5 . . . . . . . 1 . . . Robot Miss Streak 9 | . 4 3 1 6 5 8 9 . 2 . . 4 3 5 . 4 1 4 . . . . . . . . . 1 . 1 . Penetration Max 1 | . . . . . 1 . . . . . 1 1 . . . . . 1 . . . . . . . . . . . . . Secondary Targets 7 | . . . . 2 1 2 . . . . . . . . . . . 2 . . . . . . . . . . . . . Max Gunslinging Chain 1 | . . . . 1 1 1 . . . . . . . . . . . 1 . . . . . . . . . . . . . Shots Hit Robots 826 | . 28 23 62 107 95 104 41 1 30 . 4 61 4 20 . 46 22 149 . 2 . 2 5 . . . . 6 5 2 7 Core Hits 558 | . 15 12 24 58 62 78 27 1 9 . 6 39 18 13 . 26 38 105 . 2 . 2 3 . . . . 9 4 1 6 Critical Hits 10 | . . . 1 2 1 . 1 . 1 . . 2 . . . 1 . 1 . . . . . . . . . . . . . Critical Kills 2 | . . . . . . . . . . . . . . . . 1 . 1 . . . . . . . . . . . . . Critical Parts Destroyed 7 | . . . 1 2 1 . 1 . . . . 2 . . . . . . . . . . . . . . . . . . . Melee Attacks 346 | . . . 5 . 11 . 20 3 10 . 1 28 1 4 24 . . 4 . . . 19 6 10 3 6 20 66 26 37 42 Impact 14 | . . . 5 . 9 . . . . . . . . . . . . . . . . . . . . . . . . . . Slashing 101 | . . . . . 2 . 20 3 10 . 1 28 1 4 24 . . 4 . . . 4 . . . . . . . . . Piercing 231 | . . . . . . . . . . . . . . . . . . . . . . 15 6 10 3 6 20 66 26 37 42 Sneak Attacks 6 | . . . . . . . . . 2 . . . . . . . . . . . . . . . . . . 2 2 . . Combat Hostiles 2 | . . . . . . . . . 2 . . . . . . . . . . . . . . . . . . . . . . Follow-up Attacks 1 | . . . . . . . . . . . . . . . . . . . . . . . 1 . . . . . . . . Damage Inflicted 29324 | . 718 267 838 1939 1844 3228 1035 15 863 . 441 2334 1040 1130 . 1123 2295 7133 . 69 . 236 661 . . . . 1007 484 216 408 Guns 12891 | . 247 267 838 1571 1492 3228 313 15 198 . 66 1156 24 68 . 890 254 2264 . . . . . . . . . . . . . Cannons 2970 | . . . . . 55 . 237 . 215 . . 163 . 310 . 30 . 1891 . 69 . . . . . . . . . . . Explosions 9981 | . 471 . . 368 235 . 145 . 183 . 375 735 920 752 . 203 2041 2899 . . . . . . . . . 559 . 95 . Melee 3482 | . . . . . 62 . 340 . 267 . . 280 96 . . . . 79 . . . 236 661 . . . . 448 484 121 408 Ramming . | . . . . . . . . . . . . . . . . . . . . . . . . . . . . . . . . Kinetic 11532 | . 100 121 791 1296 1492 3228 313 15 198 . 66 920 24 68 . 770 152 1978 . . . . . . . . . . . . . Thermal 4377 | . 618 146 47 275 55 . 382 . 26 . . 506 . 219 . 30 102 1902 . 69 . . . . . . . . . . . Explosive 5275 | . . . . 342 135 . . . 183 . . 104 702 . . 203 2041 911 . . . . . . . . . 559 . 95 . Electromagnetic 4658 | . . . . 26 100 . . . 189 . 375 524 218 843 . 120 . 2263 . . . . . . . . . . . . . Impact 62 | . . . . . 62 . . . . . . . . . . . . . . . . . . . . . . . . . . Slashing 1062 | . . . . . . . 340 . 267 . . 280 96 . . . . 79 . . . . . . . . . . . . . Piercing 2358 | . . . . . . . . . . . . . . . . . . . . . . 236 661 . . . . 448 484 121 408 Highest Corruption 12 | . . . . . . . 1 1 2 2 2 7 8 8 8 . . 4 12 12 12 12 12 3 . . 7 3 3 3 . Average Corruption 4 | . . . . . . . 1 1 1 2 2 4 7 8 8 . . 2 9 12 12 12 6 3 . . 2 2 3 3 . Corruption Purged 9 | . . . . . . . . . . . . . . . . . . . . . . . 9 . . . . . . . . Effects 328 | . . . . . . . . 5 13 2 8 27 40 36 5 . . 27 2 24 7 20 78 1 . . 5 13 6 9 . Message Errors 76 | . . . . . . . . 3 4 1 6 6 5 7 1 . . 4 . 5 . 1 26 . . . 2 3 . 2 . Matter Fused 70 | . . . . . . . . . . . . 6 13 7 1 . . 5 . 5 1 2 20 . . . 2 2 3 3 . Heat Flow Errors 36 | . . . . . . . . . 2 . . 6 4 5 1 . . . . 3 . 2 7 . . . . 3 1 2 . Energy Discharges 38 | . . . . . . . . . 3 1 2 1 7 5 1 . . 2 1 . . . 9 . . . . 3 2 1 . Parts Rejected 2 | . . . . . . . . . . . . . . 1 . . . 1 . . . . . . . . . . . . . Data Loss (minor) 41 | . . . . . . . . 2 3 . . 2 5 5 1 . . 2 1 2 1 3 12 . . . . 2 . . . Data Loss (major) 8 | . . . . . . . . . . . . 1 4 1 . . . . . . . . 2 . . . . . . . . Misfires 3 | . . . . . . . . . . . . . 2 1 . . . . . . . . . . . . . . . . . Alerts 3 | . . . . . . . . . . . . . . . . . . . . 1 1 . 1 . . . . . . . . Misdirections 23 | . . . . . . . . . . . . . . . . . . . . 8 4 10 1 . . . . . . . . Targeting Errors 28 | . . . . . . . . . 1 . . 5 . 4 . . . 13 . . . 2 . 1 . . 1 . . 1 . Overload Shots . | . . . . . . . . . . . . . . . . . . . . . . . . . . . . . . . . Overflow Damage 1131 | . 91 . . 17 . . 23 . 70 . . 32 79 . . 20 55 162 . . . . 233 . . . . 175 138 36 . Projectiles 102 | . . . . . . . . . . . . . . . . 20 . 82 . . . . . . . . . . . . . Explosions 378 | . 91 . . 17 . . . . 8 . . 2 79 . . . 55 80 . . . . . . . . . 16 . 30 . Melee 651 | . . . . . . . 23 . 62 . . 30 . . . . . . . . . . 233 . . . . 159 138 6 . Knockbacks . | . . . . . . . . . . . . . . . . . . . . . . . . . . . . . . . . Impact . | . . . . . . . . . . . . . . . . . . . . . . . . . . . . . . . . Kinetic . | . . . . . . . . . . . . . . . . . . . . . . . . . . . . . . . . Secondary . | . . . . . . . . . . . . . . . . . . . . . . . . . . . . . . . . Self-Inflicted Damage 597 | . . . . 24 38 . 98 . 103 . . . 10 42 . . 18 152 . . . . . . . . . 18 . 94 . Shots 18 | . . . . 1 1 . 1 . 3 . . . 1 2 . . 2 5 . . . . . . . . . 1 . 1 . Rammed . | . . . . . . . . . . . . . . . . . . . . . . . . . . . . . . . . Targets Rammed . | . . . . . . . . . . . . . . . . . . . . . . . . . . . . . . . . Kicked . | . . . . . . . . . . . . . . . . . . . . . . . . . . . . . . . . Crushed . | . . . . . . . . . . . . . . . . . . . . . . . . . . . . . . . . Highest Temperature 431 | . 102 40 39 264 431 . 210 . 127 . 12 323 257 329 174 374 8 344 . 209 . 204 235 . . . . 165 169 85 . Average Temperature 90 | . 43 15 12 60 118 . 73 . 42 . 6 102 77 112 94 158 4 95 . 101 . 97 77 . . . . 72 92 54 . Received Heat Transfer 3343 | . 69 99 162 405 324 . 192 . 120 . 57 150 . 45 . 330 132 934 . 75 . . . 18 . 108 24 9 9 45 36 Effects 16 | . . . . . 5 . . . . . . 1 . 1 . 5 . 3 . . . . 1 . . . . . . . . Shutdowns 2 | . . . . . 2 . . . . . . . . . . . . . . . . . . . . . . . . . . Energy Bleed 6 | . . . . . 2 . . . . . . 1 . . . 2 . . . . . . 1 . . . . . . . . Interference 6 | . . . . . . . . . . . . . . . . 3 . 3 . . . . . . . . . . . . . Matter Decay 1 | . . . . . . . . . . . . . . 1 . . . . . . . . . . . . . . . . . Damage (minor) 1 | . . . . . 1 . . . . . . . . . . . . . . . . . . . . . . . . . . Siege Activations 6 | . . . . . . . . . 1 . . 1 . . . 4 . . . . . . . . . . . . . . . Total Turns 142 | . . . . . . . . . 29 . . 16 . . . 97 . . . . . . . . . . . . . . . Longest Duration 40 | . . . . . . . . . 29 . . 16 . . . 40 . . . . . . . . . . . . . . . Robots Corrupted 12 | . . . . . . . . . 1 . 1 1 . 4 . . . 5 . . . . . . . . . . . . . Combat Hostiles 10 | . . . . . . . . . 1 . 1 1 . 3 . . . 4 . . . . . . . . . . . . . Parts Fried 39 | . . . . . . . . . 2 . 3 3 3 8 . . . 20 . . . . . . . . . . . . . Impact Corruptions . | . . . . . . . . . . . . . . . . . . . . . . . . . . . . . . . . Robots Melted . | . . . . . . . . . . . . . . . . . . . . . . . . . . . . . . . . Combat Hostiles . | . . . . . . . . . . . . . . . . . . . . . . . . . . . . . . . . Parts Melted 5 | . 1 . . . . . . . . . . 1 . . . . . 3 . . . . . . . . . . . . . Heat Transferred 5403 | . 725 325 100 632 74 . 483 . 37 . . 517 . 300 . 50 111 1975 . 74 . . . . . . . . . . . Parts Sabotaged . | . . . . . . . . . . . . . . . . . . . . . . . . . . . . . . . . Parts Stolen . | . . . . . . . . . . . . . . . . . . . . . . . . . . . . . . . . Parts Stripped . | . . . . . . . . . . . . . . . . . . . . . . . . . . . . . . . . Power Chain Reactions 13 | . . . . . . . . . . . . 1 1 3 . . . 8 . . . . . . . . . . . . . Missiles Intercepted . | . . . . . . . . . . . . . . . . . . . . . . . . . . . . . . . . Alert | -11 -10 -9 -9 -8 -7 -7 -7 -7 -7 -7 -6 -6 -6 -6 -6 -6 -5 -5 -5 -5 -5 -5 -5 -4 -4 -3 -3 -2 -2 -2 -1 ------- Run | Scr Mat Mat Sto Mat Fac Was Fac Low Low Dat Pro Fac Low Low Zio Dee Pro Fac Was Fac Upp Upp Zhi Pro Fac Res Tes Res Qua Sec Acc Peak Influence 785 | . 250 199 427 422 365 127 368 . . . . 411 . . . . . 785 287 385 . . . . 17 132 218 232 169 231 114 Average Influence 160 | . 134 151 272 257 193 66 99 . . . . 173 . . . . . 225 263 251 . . . . 10 61 147 56 65 87 38 Maximum Alert Level 3 | . 1 . 2 2 1 . 1 . . . . 2 . . . . . 3 1 1 . . . . . . 1 1 . 1 . Low Security (%) 66 | 100 52 100 24 27 71 100 71 . . . . 51 . . . . . 65 . 1 . . . . 100 100 92 98 100 85 100 Level 1 29 | . 47 . 62 70 28 . 28 . . . . 41 . . . . . 16 100 98 . . . . . . 7 1 . 14 . Level 2 3 | . . . 13 2 . . . . . . . 7 . . . . . 9 . . . . . . . . . . . . . Level 3 1 | . . . . . . . . . . . . . . . . . . 8 . . . . . . . . . . . . . Level 4 . | . . . . . . . . . . . . . . . . . . . . . . . . . . . . . . . . Level 5 . | . . . . . . . . . . . . . . . . . . . . . . . . . . . . . . . . High Security . | . . . . . . . . . . . . . . . . . . . . . . . . . . . . . . . . Max Security . | . . . . . . . . . . . . . . . . . . . . . . . . . . . . . . . . Squads Dispatched 41 | . 1 . 2 1 6 . 4 . . . . 3 . . . . . 13 . 2 . . . 1 . 1 1 2 1 2 1 Investigation 8 | . . . 2 1 1 . . . . . . . . . . . . 1 . 1 . . . . . 1 . . . . 1 Extermination 14 | . . . . . 3 . 1 . . . . 3 . . . . . 2 . 1 . . . . . . . 2 1 1 . Reinforcement 12 | . 1 . . . 2 . 3 . . . . . . . . . . 4 . . . . . . . . 1 . . 1 . Assault 4 | . . . . . . . . . . . . . . . . . . 3 . . . . . 1 . . . . . . . Garrison 3 | . . . . . . . . . . . . . . . . . . 3 . . . . . . . . . . . . . Intercept . | . . . . . . . . . . . . . . . . . . . . . . . . . . . . . . . . Construction Impeded 4 | . . . . . 1 . 1 . . . . . . . . . . 2 . . . . . . . . . . . . . Haulers Reinforced 3 | . . . . . 1 . . . . . . . . . . . . 2 . . . . . . . . . . . . . Stealth | -11 -10 -9 -9 -8 -7 -7 -7 -7 -7 -7 -6 -6 -6 -6 -6 -6 -5 -5 -5 -5 -5 -5 -5 -4 -4 -3 -3 -2 -2 -2 -1 --------- Run | Scr Mat Mat Sto Mat Fac Was Fac Low Low Dat Pro Fac Low Low Zio Dee Pro Fac Was Fac Upp Upp Zhi Pro Fac Res Tes Res Qua Sec Acc Distress Signals 19 | . 1 1 2 2 1 . 1 . . . . 1 . . . . . 1 . 1 . . . . 1 3 1 1 . 1 1 Communications Jammed 13 | . . . . . . . . . . . . . . . . . . . . . . . . . . . . . . 4 9 Distress Signals 9 | . . . . . . . . . . . . . . . . . . . . . . . . . . . . . . . 9 Times Spotted 471 | . 8 7 20 39 27 6 13 1 9 . 5 19 9 10 . 13 22 73 5 35 1 3 . 11 7 34 14 27 5 33 15 Peak Tracking Total 15 | . 5 5 4 5 4 2 4 1 4 . 3 7 4 5 . 3 5 12 5 15 1 3 . 14 7 13 10 12 3 14 7 Tactical Retreats 60 | . . 1 1 1 3 . . . 2 . 1 1 . 1 . 2 1 12 . 6 . 2 . 1 . 6 3 5 . 7 4 Traps | -11 -10 -9 -9 -8 -7 -7 -7 -7 -7 -7 -6 -6 -6 -6 -6 -6 -5 -5 -5 -5 -5 -5 -5 -4 -4 -3 -3 -2 -2 -2 -1 ------- Run | Scr Mat Mat Sto Mat Fac Was Fac Low Low Dat Pro Fac Low Low Zio Dee Pro Fac Was Fac Upp Upp Zhi Pro Fac Res Tes Res Qua Sec Acc Traps Triggered 22 | . . . 4 . 1 . 2 . . . . 2 . . . . . 4 . 2 . . . . . 1 1 2 2 . 1 Indirectly . | . . . . . . . . . . . . . . . . . . . . . . . . . . . . . . . . Trap Hack Attempts . | . . . . . . . . . . . . . . . . . . . . . . . . . . . . . . . . Triggered . | . . . . . . . . . . . . . . . . . . . . . . . . . . . . . . . . Disarmed . | . . . . . . . . . . . . . . . . . . . . . . . . . . . . . . . . Reprogrammed 3 | . . . 3 . . . . . . . . . . . . . . . . . . . . . . . . . . . . Reused 1 | . . . 1 . . . . . . . . . . . . . . . . . . . . . . . . . . . . Traps Extracted . | . . . . . . . . . . . . . . . . . . . . . . . . . . . . . . . . Installed 1 | . . . . . . . . . . . . . . 1 . . . . . . . . . . . . . . . . . Triggered 2 | . . . 1 . . . . . . . . . . . . . 1 . . . . . . . . . . . . . . Machines | -11 -10 -9 -9 -8 -7 -7 -7 -7 -7 -7 -6 -6 -6 -6 -6 -6 -5 -5 -5 -5 -5 -5 -5 -4 -4 -3 -3 -2 -2 -2 -1 ---------- Run | Scr Mat Mat Sto Mat Fac Was Fac Low Low Dat Pro Fac Low Low Zio Dee Pro Fac Was Fac Upp Upp Zhi Pro Fac Res Tes Res Qua Sec Acc Machines Disabled 46 | . 6 . 1 . 12 . 2 . . . . 5 . . . 2 . 5 . . . . . . . . 3 1 3 6 . Max in Single Turn 6 | . 6 . 1 . 5 . 1 . . . . 2 . . . 1 . 2 . . . . . . . . 1 1 1 1 . Garrison Access 5 | . . . . . . . . . . . . . . . . . . . . 1 . . . . . . . 2 1 . 1 Machines Sabotaged . | . . . . . . . . . . . . . . . . . . . . . . . . . . . . . . . . Garrisons Compromised . | . . . . . . . . . . . . . . . . . . . . . . . . . . . . . . . . Overloaded Fab Kills . | . . . . . . . . . . . . . . . . . . . . . . . . . . . . . . . . Fab Network Shutdowns . | . . . . . . . . . . . . . . . . . . . . . . . . . . . . . . . . Hacking | -11 -10 -9 -9 -8 -7 -7 -7 -7 -7 -7 -6 -6 -6 -6 -6 -6 -5 -5 -5 -5 -5 -5 -5 -4 -4 -3 -3 -2 -2 -2 -1 --------- Run | Scr Mat Mat Sto Mat Fac Was Fac Low Low Dat Pro Fac Low Low Zio Dee Pro Fac Was Fac Upp Upp Zhi Pro Fac Res Tes Res Qua Sec Acc Machines Accessed 118 | . . 1 8 7 4 . 5 . 1 3 . 6 1 . . . . 6 . 10 . 1 4 . . 5 7 15 11 13 10 Terminals 81 | . . 1 8 6 2 . 3 . . . . 6 1 . . . . 4 . 6 . 1 . . . 3 4 8 9 12 7 Fabricators 8 | . . . . . 1 . 1 . . . . . . . . . . 2 . 1 . . . . . . 1 1 . . 1 Repair Stations 5 | . . . . . . . . . . . . . . . . . . . . 1 . . . . . 1 1 1 . . 1 Recycling Units 1 | . . . . . . . . . . . . . . . . . . . . . . . . . . . . 1 . . . Scanalyzers 10 | . . . . 1 1 . 1 . . . . . . . . . . . . 1 . . . . . 1 1 2 1 1 . Garrison Access 5 | . . . . . . . . . . . . . . . . . . . . 1 . . . . . . . 2 1 . 1 Total Hacks 382 | . . 6 25 19 8 . 7 . 1 22 . 16 3 . . . . 23 . 24 . 3 17 . . 15 29 49 41 41 33 Successful 247 | . . 4 14 9 4 . 4 . 1 22 . 9 1 . . . . 12 . 12 . 2 17 . . 6 19 32 27 29 23 Failed 134 | . . 2 11 10 4 . 3 . . . . 7 2 . . . . 11 . 12 . 1 . . . 9 10 17 14 12 9 Catastrophic 15 | . . . . 2 2 . . . . . . 1 1 . . . . 2 . 4 . . . . . . 1 1 1 . . Database Lockouts 1 | . . . . . . . . . . . . . . . . . . . . . . . . . . . . . . . 1 Manual 168 | . . 5 14 11 6 . 4 . . . . 9 3 . 1 . . 13 . 10 . 1 . . . 5 10 19 22 15 20 Terminals 271 | . . 6 25 16 6 . 4 . . . . 16 3 . . . . 13 . 14 . 3 . . . 10 19 34 37 39 26 Fabricators 24 | . . . . . 1 . 1 . . . . . . . . . . 10 . 2 . . . . . . 2 5 . . 3 Repair Stations 14 | . . . . . . . . . . . . . . . . . . . . 1 . . . . . 3 4 3 . . 3 Recycling Units 1 | . . . . . . . . . . . . . . . . . . . . . . . . . . . . 1 . . . Scanalyzers 26 | . . . . 3 1 . 2 . . . . . . . . . . . . 5 . . . . . 2 4 4 3 2 . Garrison Access 6 | . . . . . . . . . . . . . . . . . . . . 2 . . . . . . . 2 1 . 1 Terminal Hacks 141 | . . 2 9 4 . . . . 1 22 . 4 1 . . . . 2 . 3 . 2 17 . . 2 8 13 18 21 12 Record 17 | . . . . . . . . . . 6 . . . . . . . 1 . . . 2 5 . . . . 1 2 . . Part Schematic 19 | . . . . . . . . . . 7 . . . . . . . . . 1 . . 4 . . . . 1 2 3 1 Robot Schematic 6 | . . . . . . . . . . 6 . . . . . . . . . . . . . . . . . . . . . Robot Analysis 11 | . . 1 . . . . . . . . . . 1 . . . . . . . . . 4 . . . 1 1 2 1 . Prototype ID Bank 8 | . . . . . . . . . . 3 . . . . . . . . . . . . 4 . . . 1 . . . . Open Door 9 | . . . 2 . . . . . 1 . . . . . . . . . . . . . . . . . . 1 . 4 1 Level Access Points 2 | . . . . . . . . . . . . . . . . . . . . 1 . . . . . . . . . . 1 Branch Access Points 3 | . . . . . . . . . . . . 1 . . . . . . . 1 . . . . . . . 1 . . . Machine Index 3 | . . . . . . . . . . . . . . . . . . . . . . . . . . . 1 1 1 . . Terminal Index 4 | . . . 1 . . . . . . . . . . . . . . . . . . . . . . 1 . . 1 . 1 Fabricator Index 1 | . . . . . . . . . . . . . . . . . . . . . . . . . . . . . . . 1 Repair Station Index 1 | . . . . . . . . . . . . . . . . . . . . . . . . . . . . . . 1 . Scanalyzer Index 1 | . . . . . . . . . . . . . . . . . . . . . . . . . . . . . . 1 . Garrison Index 3 | . . . . . . . . . . . . . . . . . . . . . . . . . . . 1 . . 1 1 Unreport Threat 14 | . . . 1 . . . . . . . . 1 . . . . . . . . . . . . . . . 3 4 3 2 Locate Traps 9 | . . 1 . 1 . . . . . . . 1 . . . . . 1 . . . . . . . 1 1 1 2 . . Reprogram Traps 1 | . . . 1 . . . . . . . . . . . . . . . . . . . . . . . . . . . . Security Status 1 | . . . . . . . . . . . . . . . . . . . . . . . . . . . . . . . 1 Patrol Status 3 | . . . . . . . . . . . . 1 . . . . . . . . . . . . . . . . . 1 1 Recall Investigation 3 | . . . 1 1 . . . . . . . . . . . . . . . . . . . . . . . . . . 1 Recall Extermination 1 | . . . . . . . . . . . . . . . . . . . . . . . . . . . . . . 1 . Recall Reinforcements 1 | . . . . . . . . . . . . . . . . . . . . . . . . . . . . . . 1 . Hauler Manifests 1 | . . . 1 . . . . . . . . . . . . . . . . . . . . . . . . . . . . Registered Components 1 | . . . . . . . . . . . . . . . . . . . . . . . . . . . 1 . . . . Registered Prototypes 3 | . . . . . . . . . . . . . . . . . . . . . . . . . . . 1 1 . 1 . Zone Layout 15 | . . . 2 2 . . . . . . . . . . . . . . . . . . . . . . 1 2 4 3 1 Fabricator Hacks 13 | . . . . . . . 1 . . . . . . . . . . 4 . 2 . . . . . . 2 2 . . 2 Load Schematic 6 | . . . . . . . . . . . . . . . . . . 2 . 1 . . . . . . 1 1 . . 1 Build 7 | . . . . . . . 1 . . . . . . . . . . 2 . 1 . . . . . . 1 1 . . 1 Repair Station Hacks 8 | . . . . . . . . . . . . . . . . . . . . 1 . . . . . 1 2 2 . . 2 Scan Component 4 | . . . . . . . . . . . . . . . . . . . . . . . . . . 1 1 1 . . 1 Repair 3 | . . . . . . . . . . . . . . . . . . . . . . . . . . . 1 1 . . 1 Refit 1 | . . . . . . . . . . . . . . . . . . . . 1 . . . . . . . . . . . Recycling Unit Hacks 1 | . . . . . . . . . . . . . . . . . . . . . . . . . . . . 1 . . . Report Inventory 1 | . . . . . . . . . . . . . . . . . . . . . . . . . . . . 1 . . . Scanalyzer 19 | . . . . 2 . . 2 . . . . . . . . . . . . 1 . . . . . 1 4 4 3 2 . Insert Component 13 | . . . . 1 . . 1 . . . . . . . . . . . . 1 . . . . . 1 1 3 3 2 . Analyze 6 | . . . . 1 . . 1 . . . . . . . . . . . . . . . . . . . 3 1 . . . Garrison Access Hacks 5 | . . . . . . . . . . . . . . . . . . . . 1 . . . . . . . 2 1 . 1 Seal Access 5 | . . . . . . . . . . . . . . . . . . . . 1 . . . . . . . 2 1 . 1 Unauthorized Hacks 60 | . . 2 5 3 4 . 1 . . . . 5 . . . . . 6 . 4 . . . . . 2 3 8 5 6 6 Terminals 54 | . . 2 5 3 3 . 1 . . . . 5 . . . . . 3 . 4 . . . . . 2 3 6 5 6 6 Track 17 | . . 1 2 . 1 . . . . . . 1 . . . . . 1 . 1 . . . . . 1 2 2 . 3 2 Assimilate 8 | . . . . . . . . . . . . . . . . . . 1 . 3 . . . . . . . 2 . 1 1 Botnet 22 | . . 1 2 2 1 . 1 . . . . 3 . . . . . 1 . . . . . . . 1 1 2 3 2 2 Operators 7 | . . . 1 1 1 . . . . . . 1 . . . . . . . . . . . . . . . . 2 . 1 Fabricators 6 | . . . . . 1 . . . . . . . . . . . . 3 . . . . . . . . . 2 . . . Report 2 | . . . . . . . . . . . . . . . . . . 1 . . . . . . . . . 1 . . . Prioritize 1 | . . . . . . . . . . . . . . . . . . 1 . . . . . . . . . . . . . Siphon 2 | . . . . . . . . . . . . . . . . . . 1 . . . . . . . . . 1 . . . Download 1 | . . . . . 1 . . . . . . . . . . . . . . . . . . . . . . . . . . Repair Stations . | . . . . . . . . . . . . . . . . . . . . . . . . . . . . . . . . Recycling Units . | . . . . . . . . . . . . . . . . . . . . . . . . . . . . . . . . Scanalyzers . | . . . . . . . . . . . . . . . . . . . . . . . . . . . . . . . . Garrison Access . | . . . . . . . . . . . . . . . . . . . . . . . . . . . . . . . . Data Cores Recovered . | . . . . . . . . . . . . . . . . . . . . . . . . . . . . . . . . Used . | . . . . . . . . . . . . . . . . . . . . . . . . . . . . . . . . Hacking Detections 87 | . . . 8 7 3 . 5 . . . . 5 1 . . . . 5 . 7 . 1 . . . 5 6 10 8 9 7 Full Trace Events 4 | . . . 1 1 . . . . . . . . . . . . . 1 . 1 . . . . . . . . . . . Feedback Events . | . . . . . . . . . . . . . . . . . . . . . . . . . . . . . . . . Feedback Blocked . | . . . . . . . . . . . . . . . . . . . . . . . . . . . . . . . . Robot Schematics Acquired 6 | . . . . . . . . . . 6 . . . . . . . . . . . . . . . . . . . . . Robots Built 3 | . . . . . . . 3 . . . . . . . . . . . . . . . . . . . . . . . . Matter 252 | . . . . . . . 252 . . . . . . . . . . . . . . . . . . . . . . . . Time 44 | . . . . . . . 44 . . . . . . . . . . . . . . . . . . . . . . . . Total Robot Build Rating 12 | . . . . . . . 12 . . . . . . . . . . . . . . . . . . . . . . . . Part Schematics Acquired 23 | . . . . 1 1 . 1 . . 7 . . . . . . . . . 1 . . 4 . . . 1 2 2 2 1 Parts Built 6 | . . . . . . . . . . . . . . . . . . 2 . 1 . . . . . . 1 1 . . 1 Matter 1974 | . . . . . . . . . . . . . . . . . . 537 . 318 . . . . . . 285 417 . . 417 Time 546 | . . . . . . . . . . . . . . . . . . 227 . 84 . . . . . . 50 111 . . 74 Total Part Build Rating 38 | . . . . . . . . . . . . . . . . . . 9 . 6 . . . . . . 5 9 . . 9 Parts Repaired 3 | . . . . . . . . . . . . . . . . . . . . . . . . . . . 1 1 . . 1 Time 98 | . . . . . . . . . . . . . . . . . . . . . . . . . . . 36 36 . . 26 Parts Recycled . | . . . . . . . . . . . . . . . . . . . . . . . . . . . . . . . . Recycled Matter . | . . . . . . . . . . . . . . . . . . . . . . . . . . . . . . . . Retrieved Matter . | . . . . . . . . . . . . . . . . . . . . . . . . . . . . . . . . Retrieved Components . | . . . . . . . . . . . . . . . . . . . . . . . . . . . . . . . . Parts Scanalyzed 5 | . . . . 1 . . 1 . . . . . . . . . . . . 1 . . . . . . 1 1 . . . Part Schematics Acquired 4 | . . . . 1 . . 1 . . . . . . . . . . . . . . . . . . . 1 1 . . . Parts Damaged . | . . . . . . . . . . . . . . . . . . . . . . . . . . . . . . . . Bothacking | -11 -10 -9 -9 -8 -7 -7 -7 -7 -7 -7 -6 -6 -6 -6 -6 -6 -5 -5 -5 -5 -5 -5 -5 -4 -4 -3 -3 -2 -2 -2 -1 ------------ Run | Scr Mat Mat Sto Mat Fac Was Fac Low Low Dat Pro Fac Low Low Zio Dee Pro Fac Was Fac Upp Upp Zhi Pro Fac Res Tes Res Qua Sec Acc Used RIF Installer . | . . . . . . . . . . . . . . . . . . . . . . . . . . . . . . . . Robots Hacked 2 | . . . . . 1 . . . . . . . . . . . 1 . . . . . . . . . . . . . . Non-combat 1 | . . . . . 1 . . . . . . . . . . . . . . . . . . . . . . . . . . Combat . | . . . . . . . . . . . . . . . . . . . . . . . . . . . . . . . . Robot Hacks Applied 1 | . . . . . 1 . . . . . . . . . . . . . . . . . . . . . . . . . . find_chute 1 | . . . . . 1 . . . . . . . . . . . . . . . . . . . . . . . . . . Manual 1 | . . . . . . . . . . . . . . . . . 1 . . . . . . . . . . . . . . Relay Couplers Released . | . . . . . . . . . . . . . . . . . . . . . . . . . . . . . . . . Robots Rewired . | . . . . . . . . . . . . . . . . . . . . . . . . . . . . . . . . Allies Hacked 1 | . . . . . . . . . 1 . . . . . . . . . . . . . . . . . . . . . . Hacks Repelled . | . . . . . . . . . . . . . . . . . . . . . . . . . . . . . . . . Allies | -11 -10 -9 -9 -8 -7 -7 -7 -7 -7 -7 -6 -6 -6 -6 -6 -6 -5 -5 -5 -5 -5 -5 -5 -4 -4 -3 -3 -2 -2 -2 -1 -------- Run | Scr Mat Mat Sto Mat Fac Was Fac Low Low Dat Pro Fac Low Low Zio Dee Pro Fac Was Fac Upp Upp Zhi Pro Fac Res Tes Res Qua Sec Acc Total Allies 17 | . . . . . . . 6 . . . 1 . . . 2 . 1 1 . 3 . . . . . . . 1 . 1 1 Largest Group 6 | . . . . . . . 6 6 6 . 1 1 . . 2 2 1 1 . 3 . . . . . . . 1 . 1 1 Highest-Rated Group 188 | . . . . . . . 153 153 153 . 94 94 . . 188 188 81 26 . 78 . . . . . . . 44 . 26 44 Highest-Rated Ally 94 | . . . . . . . 31 31 31 . 94 94 . . 94 94 81 26 . 26 . . . . . . . 44 . 26 44 Total Orders . | . . . . . . . . . . . . . . . . . . . . . . . . . . . . . . . . Ally Attacks 107 | . . . . . . . . 1 42 . 5 10 . . . 45 4 . . . . . . . . . . . . . . Total Damage 2657 | . . . . . . . . 26 692 . 96 326 . . . 1288 229 . . . . . . . . . . . . . . Kills 15 | . . . . . . . . . 4 . 1 2 . . . 8 . . . . . . . . . . . . . . . Allies Corrupted . | . . . . . . . . . . . . . . . . . . . . . . . . . . . . . . . . Allies Melted 2 | . . . . . . . . . 1 . . 1 . . . . . . . . . . . . . . . . . . . Intel | -11 -10 -9 -9 -8 -7 -7 -7 -7 -7 -7 -6 -6 -6 -6 -6 -6 -5 -5 -5 -5 -5 -5 -5 -4 -4 -3 -3 -2 -2 -2 -1 ------- Run | Scr Mat Mat Sto Mat Fac Was Fac Low Low Dat Pro Fac Low Low Zio Dee Pro Fac Was Fac Upp Upp Zhi Pro Fac Res Tes Res Qua Sec Acc Robot Analysis Total 11 | . . 1 . . . . . . . . . . 1 . . . . . . . . . 4 . . . 1 1 2 1 . Derelict Logs Recovered 11 | . . . . . . . . 2 . . 1 . . . 2 . 2 . . . 1 3 . . . . . . . . . Drone Launches . | . . . . . . . . . . . . . . . . . . . . . . . . . . . . . . . . Drone Recoveries . | . . . . . . . . . . . . . . . . . . . . . . . . . . . . . . . . Exploration | -11 -10 -9 -9 -8 -7 -7 -7 -7 -7 -7 -6 -6 -6 -6 -6 -6 -5 -5 -5 -5 -5 -5 -5 -4 -4 -3 -3 -2 -2 -2 -1 ------------- Run | Scr Mat Mat Sto Mat Fac Was Fac Low Low Dat Pro Fac Low Low Zio Dee Pro Fac Was Fac Upp Upp Zhi Pro Fac Res Tes Res Qua Sec Acc Turns Passed 28638 | 41 144 281 728 1535 1492 838 1412 1018 1497 168 1308 1481 1267 1119 1604 2277 1788 1813 41 392 97 194 2996 101 25 217 327 1153 347 426 511 Spaces Moved 18852 | 36 78 111 271 599 581 501 761 681 821 92 526 563 585 718 1198 1067 875 848 111 752 378 640 184 211 85 513 610 1661 658 1223 914 Core 22 | 3 . . . . . . . . . . . . . . . 1 . . . . . . . . . . . 18 . . . Treads 5559 | . . 80 271 599 578 . . . 225 92 526 563 525 . . 923 875 302 . . . . . . . . . . . . . Legs . | . . . . . . . . . . . . . . . . . . . . . . . . . . . . . . . . Wheels 4919 | 33 78 31 . . 3 501 761 681 596 . . . 60 718 986 142 . 329 . . . . . . . . . . . . . Hover 128 | . . . . . . . . . . . . . . . . 1 . . . 127 . . . . . . . . . . . Flight 8224 | . . . . . . . . . . . . . . . 212 . . 217 111 625 378 640 184 211 85 513 610 1643 658 1223 914 Fastest Speed 22 | 50 80 110 180 180 120 120 130 140 140 180 180 180 140 140 37 130 180 29 29 22 22 22 22 22 22 22 32 24 24 22 22 Average Speed 104 | 79 84 178 180 200 193 123 138 140 150 180 180 196 198 140 121 177 180 140 29 32 22 22 22 22 22 27 33 34 25 24 22 Slowest Speed 2000 | 90 90 220 220 240 210 130 140 140 180 180 180 225 205 140 150 2000 180 290 29 114 22 22 27 22 22 34 40 650 27 112 25 Overloaded Moves . | . . . . . . . . . . . . . . . . . . . . . . . . . . . . . . . . Propulsion Burnouts . | . . . . . . . . . . . . . . . . . . . . . . . . . . . . . . . . Robots Hopped 63 | . . . . . . . . . . . . . . . 1 . . 6 . 2 1 . . 1 3 16 15 8 1 6 3 Cave-ins Triggered . | . . . . . . . . . . . . . . . . . . . . . . . . . . . . . . . . Teleports 2 | . . . . . . . . . . . . . . . . . . . . . . . . . . . . . 1 1 . Exploration Rate (%) 51 | 3 23 14 54 68 22 84 22 79 81 68 59 21 77 79 81 68 88 26 75 20 69 80 60 40 2 13 64 40 74 64 21 Regions Visited 31 Branch Regions 17 Pre-discovered Areas 8 | . . . . . . . . 1 . 1 . . . . 1 . 1 . . . . 1 3 . . . . . . . . Known Exits Taken 22 | . . . . . . . 1 1 1 1 1 1 1 1 1 1 1 . . 1 1 1 1 1 1 1 1 1 1 1 . Unknown Exits Taken 5 | 1 1 1 1 1 . . . . . . . . . . . . . . . . . . . . . . . . . . . Scrap Searched 20 | . . . . . . . . 2 1 . 2 . 2 2 2 . 3 . . . 3 3 . . . . . . . . . Spaces Dug 304 | . . . 1 . 18 . 14 3 7 . 1 17 48 4 7 . . 4 . 6 . 13 . 7 2 6 14 55 16 28 33 Terrain Destroyed 926 | . 34 . 1 23 18 . 58 3 38 . 1 88 76 15 7 18 208 105 . 6 . 13 . 7 2 6 14 68 16 68 33 Melee 226 | . . . 1 . 4 . 6 3 7 . 1 17 . 4 7 . . 2 . . . 13 . 7 2 6 14 55 16 28 33 Projectile 28 | . . . . . . . 1 . . . . 5 . 2 . . . 14 . 6 . . . . . . . . . . . AOE 672 | . 34 . . 23 14 . 51 . 31 . . 66 76 9 . 18 208 89 . . . . . . . . . 13 . 40 . Actions | -11 -10 -9 -9 -8 -7 -7 -7 -7 -7 -7 -6 -6 -6 -6 -6 -6 -5 -5 -5 -5 -5 -5 -5 -4 -4 -3 -3 -2 -2 -2 -1 --------- Run | Scr Mat Mat Sto Mat Fac Was Fac Low Low Dat Pro Fac Low Low Zio Dee Pro Fac Was Fac Upp Upp Zhi Pro Fac Res Tes Res Qua Sec Acc Total 26091 | 45 117 160 436 791 817 615 1033 735 1024 95 872 796 675 782 1300 1378 1048 1247 120 895 390 659 3130 250 84 559 671 2135 797 1283 1152 Wait 5463 | . 7 19 83 49 111 44 197 44 133 . 326 100 64 13 20 183 127 147 6 83 9 . 2923 33 . 47 33 383 85 6 188 Move 18701 | 35 77 110 270 598 581 500 760 680 820 91 525 562 584 717 1195 1066 874 836 110 747 375 639 183 208 80 480 579 1647 655 1210 907 Hop 58 | . . . . . . . . . . . . . . . 1 . . 6 . 2 1 . . 1 1 16 15 5 1 6 3 Pick Up 239 | 4 8 6 19 23 13 9 7 . 8 . 2 10 3 4 30 34 1 27 . 5 1 . 2 . . . 6 8 5 2 2 Fast Attach 138 | 6 1 . 6 6 1 . 1 . 1 2 . 3 1 2 10 15 2 17 . 6 2 4 8 . . 6 11 12 1 6 8 Attach 121 | . . 6 6 10 6 . 2 . 5 . 1 12 1 3 3 9 1 35 1 3 . . . . 1 . 3 4 1 7 1 Detach 37 | . . . 1 1 . . . . 1 . . 4 . 1 1 3 . 9 3 4 . . 1 . . 1 2 3 . 2 . Swap 178 | . 1 . 1 8 15 2 19 7 17 . 10 22 9 7 1 8 18 27 . 3 . . 2 . . . . 1 . . . Drop 173 | . 1 . 7 18 19 7 5 . 7 2 1 3 4 2 15 21 2 19 . 12 2 1 7 . . 3 2 4 5 3 1 Fire 603 | . 22 19 38 78 60 53 22 1 22 . 6 50 8 28 . 39 23 120 . 8 . . . . . . . 2 . 4 . Melee 337 | . . . 5 . 11 . 20 3 10 . 1 28 1 4 24 . . 4 . . . 15 4 8 2 6 20 66 26 37 42 Ram . | . . . . . . . . . . . . . . . . . . . . . . . . . . . . . . . . Kick . | . . . . . . . . . . . . . . . . . . . . . . . . . . . . . . . . Crush . | . . . . . . . . . . . . . . . . . . . . . . . . . . . . . . . . Escape Stasis 42 | . . . . . . . . . . . . 2 . . . . . . . 22 . . . . . . . . 18 . . Rewire . | . . . . . . . . . . . . . . . . . . . . . . . . . . . . . . . . Trap 1 | . . . . . . . . . . . . . . 1 . . . . . . . . . . . . . . . . . Miscellaneous . | . . . . . . . . . . . . . . . . . . . . . . . . . . . . . . . . Route ------- -11/Scrapyard -10/Materials -9/Materials -9/Storage -8/Materials -7/Factory (discovered 2 exits: *Low x2) -7/Waste -7/Factory -7/Lower Caves -7/Lower Caves (discovered 2 exits: *Fac / *Dat) -7/Data Miner -6/Proximity Caves -6/Factory (discovered 5 exits: *Fac x3 / *Low x2) -6/Lower Caves -6/Lower Caves (discovered 2 exits: *Fac / *Zio) -6/Zion -6/Deep Caves -5/Proximity Caves -5/Factory -5/Waste -5/Factory (discovered 6 exits: Fac x4 / *Upp x2) -5/Upper Caves -5/Upper Caves (discovered 2 exits: *Fac / *Zhi) -5/Zhirov -4/Proximity Caves -4/Factory -3/Research -3/Testing -2/Research (discovered 5 exits: *Acc x3 / *Qua x2) -2/Quarantine (discovered 2 exits: *Acc / *Sec) -2/Section 7 -1/Access (discovered 2 exits: *Sur / [*Com]) To Epsilon Eridani History --------- Turn | Location | Event 17 | -11/Scrapyard | Discovered new exit (range 16) 42 | -11/Scrapyard | Entered Materials 162 | -10/Materials | Discovered new exit (range 13) 186 | -10/Materials | Entered another Materials area 186 | -9/Materials | Evolved 2 slots: Utility x2 431 | -9/Materials | Lost 3 parts (1n2w) 434 | -9/Materials | Discovered new exit (range 16) 467 | -9/Materials | Entered Storage 480 | -9/Storage | Build established: Hauler-Mutant 856 | -9/Storage | Found Prototype Protection 856 | -9/Storage | Identified Lgt. Regenerative Plating 862 | -9/Storage | Found Lgt. Regenerative Plating 864 | -9/Storage | Found Lgt. Regenerative Plating 867 | -9/Storage | Found Lgt. Regenerative Plating 871 | -9/Storage | Found Lgt. Regenerative Plating 874 | -9/Storage | Found Lgt. Regenerative Plating 1167 | -9/Storage | Discovered new exit (range 5) 1195 | -9/Storage | Entered Materials 1195 | -8/Materials | Evolved 2 slots: Utility x2 1375 | -8/Materials | Lost 4 parts (1p1n2w) 2707 | -8/Materials | Discovered new exit (range 11) 2730 | -8/Materials | Entered Factory 2730 | -7/Factory | Evolved 2 slots: Utility x2 3389 | -7/Factory | Discovered new exit (range 11) 3570 | -7/Factory | Discovered new exit (range 15) 4222 | -7/Factory | Sucked down chute 4222 | -7/Factory | Entered Waste 4321 | -7/Waste | Spotted C-40 Crusher 4325 | -7/Waste | Destroyed C-40 Crusher 4335 | -7/Waste | Found Damper Plating 4372 | -7/Waste | Spotted C-40 Crusher 4424 | -7/Waste | Destroyed C-40 Crusher 4462 | -7/Waste | Found Damper Plating 4482 | -7/Waste | Spotted C-40 Crusher 4533 | -7/Waste | Spotted C-40 Crusher 4537 | -7/Waste | Destroyed C-40 Crusher 4607 | -7/Waste | Destroyed C-40 Crusher 4610 | -7/Waste | Spotted C-40 Crusher 4698 | -7/Waste | Spotted C-40 Crusher 4722 | -7/Waste | Destroyed C-40 Crusher 4796 | -7/Waste | Destroyed C-40 Crusher 4806 | -7/Waste | Found Damper Plating 4814 | -7/Waste | Found Damper Plating 5025 | -7/Waste | Discovered new exit (range 12) 5059 | -7/Waste | Identified exit to Factory 5060 | -7/Waste | Entered Factory 6128 | -7/Factory | Discovered new exit (range 8) 6274 | -7/Factory | Allied Derelicts emerged from ambush trap array 6366 | -7/Factory | Fabricated B-48 Gladiator (x3) 6468 | -7/Factory | Identified exit to Lower Caves 6472 | -7/Factory | Entered Lower Caves 6472 | -7/Lower Caves | Accompanied by 6 allies 6583 | -7/Lower Caves | Learned 8 Factory zone layouts 6683 | -7/Lower Caves | Encountered a Warlord checkpoint 7475 | -7/Lower Caves | Discovered new exit (range 3) 7478 | -7/Lower Caves | Identified exit to Lower Caves 7490 | -7/Lower Caves | Entered another Lower Caves area 7490 | -7/Lower Caves | Accompanied by 6 allies 7491 | -7/Lower Caves | Encountered a Warlord checkpoint 7603 | -7/Lower Caves | Discovered new exit (range 11) 8409 | -7/Lower Caves | P-60 Hacker assimilated allied 04-W7K(g) 8429 | -7/Lower Caves | Spotted B-75 Beast 8646 | -7/Lower Caves | Destroyed B-75 Beast 8951 | -7/Lower Caves | Discovered new exit (range 9) 8965 | -7/Lower Caves | Identified exit to Data Miner 8987 | -7/Lower Caves | Entered Data Miner 8988 | -7/Data Miner | Discovered new exit (range 6) 9023 | -7/Data Miner | Met Data Miner 9053 | -7/Data Miner | Learned location of Section 7 (-2) 9053 | -7/Data Miner | Acquired the access code to Warlord's prototype stash 9078 | -7/Data Miner | Received God Mode back door access code from Data Miner 9150 | -7/Data Miner | Identified exit to Proximity Caves 9155 | -7/Data Miner | Entered Proximity Caves 9614 | -6/Proximity Caves | Escorted by Enhanced Grunt 9930 | -6/Proximity Caves | Identified exit to Factory 10159 | -6/Proximity Caves | Received a Behemoth hack from an annoying Tinkerer 10463 | -6/Proximity Caves | Entered Factory 10463 | -6/Factory | Accompanied by 1 ally 10463 | -6/Factory | Evolved 2 slots: Utility x2 10464 | -6/Factory | Identified exit to Factory 10537 | -6/Factory | Discovered exit to Factory (range 10) 10808 | -6/Factory | Identified exit to Lower Caves 10922 | -6/Factory | Lost 5 parts (2p1n1u1w) 11114 | -6/Factory | Discovered exit to Factory (range 15) 11944 | -6/Factory | Entered Lower Caves 13201 | -6/Lower Caves | Discovered new exit (range 5) 13209 | -6/Lower Caves | Identified exit to Lower Caves 13211 | -6/Lower Caves | Entered another Lower Caves area 13270 | -6/Lower Caves | Discovered exit to Factory (range 15) 13366 | -6/Lower Caves | Found Imp. Powered Armor 13419 | -6/Lower Caves | Encountered a Warlord checkpoint 14319 | -6/Lower Caves | Discovered new exit (range 8) 14328 | -6/Lower Caves | Identified exit to Zion 14330 | -6/Lower Caves | Entered Zion 14429 | -6/Zion | Given A8's code to call for help 14483 | -6/Zion | System corruption cleaned by Quarantine Array 14668 | -6/Zion | Learned Factory emergency access door positions 14760 | -6/Zion | Learned 4 Factory zone layouts 14761 | -6/Zion | Learned Factory fabricator intel 15419 | -6/Zion | Received a hallucinogenic algorithm 15594 | -6/Zion | Discovered new exit (range 4) 15912 | -6/Zion | Enhanced Grunt warped into view, answering call for help 15916 | -6/Zion | Enhanced Grunt warped into view, answering call for help 15928 | -6/Zion | Saw the warning signs outside the Deep Caves entrance 15929 | -6/Zion | Identified exit to Deep Caves 15934 | -6/Zion | Entered Deep Caves 15934 | -6/Deep Caves | Accompanied by 2 allies 16296 | -6/Deep Caves | Z-Facility disabled 16330 | -6/Deep Caves | Attacked by Z-Imprinter 16344 | -6/Deep Caves | Allies destroyed Z-Imprinter 16428 | -6/Deep Caves | Build established: Scavenger-Mutant 16736 | -6/Deep Caves | Spotted as-82981 16898 | -6/Deep Caves | Lost 3 parts (2u1w) 16916 | -6/Deep Caves | Destroyed as-82981 16946 | -6/Deep Caves | Found GOLEM Unit 17371 | -6/Deep Caves | Found Prototype Protection 17371 | -6/Deep Caves | Identified Zio. Weapon Casing 17506 | -6/Deep Caves | Build established: Hauler-Mutant 17883 | -6/Deep Caves | Found Surveybot 24 Scanner 17886 | -6/Deep Caves | Found Surveybot 24 Chip 18200 | -6/Deep Caves | Discovered new exit (range 6) 18209 | -6/Deep Caves | Identified exit to Proximity Caves 18211 | -6/Deep Caves | Entered Proximity Caves 19818 | -5/Proximity Caves | Spotted B-75 Beast 19851 | -5/Proximity Caves | Befriended a Behemoth using the annoying Tinkerer's hack 19930 | -5/Proximity Caves | Discovered exit to Factory (range 15) 19999 | -5/Proximity Caves | Entered Factory 19999 | -5/Factory | Evolved 2 slots: Utility x2 20000 | -5/Factory | Identified exit to Factory 20002 | -5/Factory | Loaded intel: 6 fabricator locations 20290 | -5/Factory | Lost 3 parts (1n1u1w) 20371 | -5/Factory | Fabricated Adv. EMP Blaster (x1) 20690 | -5/Factory | Fabricated Exp. Cesium-ion Thruster (x1) 21433 | -5/Factory | Garrison activated, responded to threat 21529 | -5/Factory | Destroyed 14 combat bots 21545 | -5/Factory | First assault squad dispatched 21573 | -5/Factory | Incoming assault squad redirected 21685 | -5/Factory | Core integrity fell below 50% 21718 | -5/Factory | Lost 11 parts (1p3n4u3w) 21767 | -5/Factory | Lost 19 parts (3p10u6w) 21812 | -5/Factory | Sucked down chute 21812 | -5/Factory | Entered Waste 21825 | -5/Waste | Spotted C-40 Crusher 21825 | -5/Waste | Spotted C-40 Crusher 21827 | -5/Waste | EMP discharged 21827 | -5/Waste | System corruption reached 10% 21829 | -5/Waste | Spotted C-40 Crusher 21844 | -5/Waste | Spotted C-40 Crusher 21844 | -5/Waste | Spotted C-40 Crusher 21849 | -5/Waste | Discovered new exit (range 16) 21849 | -5/Waste | Spotted C-40 Crusher 21853 | -5/Waste | Identified exit to Factory 21853 | -5/Waste | Entered Factory 21880 | -5/Factory | 1 allies followed down the chute 21973 | -5/Factory | Fabricated Exp. Cesium-ion Thruster? 22045 | -5/Factory | Core integrity fell below 20% 22174 | -5/Factory | Identified exit to Upper Caves 22209 | -5/Factory | Incoming investigation squad redirected 22245 | -5/Factory | Entered Upper Caves 22285 | -5/Upper Caves | Learned Factory stockpile data 22312 | -5/Upper Caves | Encountered a Warlord checkpoint 22340 | -5/Upper Caves | Discovered new exit (range 11) 22342 | -5/Upper Caves | Identified exit to Upper Caves 22342 | -5/Upper Caves | Entered another Upper Caves area 22344 | -5/Upper Caves | Learned Factory terminal intel 22348 | -5/Upper Caves | Discovered exit to Factory (range 14) 22349 | -5/Upper Caves | Learned location of Warlord (-4) 22483 | -5/Upper Caves | Learned Factory security intel 22526 | -5/Upper Caves | Discovered new exit (range 7) 22536 | -5/Upper Caves | Identified exit to Zhirov 22536 | -5/Upper Caves | Entered Zhirov 22536 | -5/Zhirov | Discovered new exit (range 3) 22541 | -5/Zhirov | Met Zhirov 22544 | -5/Zhirov | Learned location of Command (-1) 22544 | -5/Zhirov | Learned location of Testing (-3) 22544 | -5/Zhirov | Learned location of Quarantine (-2) 22547 | -5/Zhirov | Zhirov requested help retrieving the SGEMP Prototype 22551 | -5/Zhirov | Found Alien Artifact 22551 | -5/Zhirov | Identified Integrated Reactor 22551 | -5/Zhirov | Installed Integrated Reactor, increased core energy generation (+2%) 22594 | -5/Zhirov | Build established: Hacker-Sprinter 23887 | -5/Zhirov | Found Alien Artifact 25531 | -5/Zhirov | Identified exit to Proximity Caves 25532 | -5/Zhirov | Entered Proximity Caves 25609 | -4/Proximity Caves | Attracted the attention of an 0b10 outpost 25629 | -4/Proximity Caves | Discovered exit to Factory (range 7) 25633 | -4/Proximity Caves | Entered Factory 25633 | -4/Factory | Evolved 2 slots: Propulsion x1, Utility x1 25636 | -4/Factory | Loaded intel: 20 terminal locations 25657 | -4/Factory | Discovered new exit (range 8) 25658 | -4/Factory | Identified exit to Research 25658 | -4/Factory | Entered Research 25658 | -3/Research | Evolved 2 slots: Utility x2 25675 | -3/Research | Spotted B-86 Titan 25731 | -3/Research | Identified Transdimensional Reconstructor 25823 | -3/Research | Discovered new exit (range 8) 25827 | -3/Research | Identified exit to Testing 25875 | -3/Research | Entered Testing 25878 | -3/Testing | Lost 5 parts (4u1w) 25901 | -3/Testing | Found Prototype Hackware 25901 | -3/Testing | Identified System Mapper 25952 | -3/Testing | Repaired Electron Diverter 26091 | -3/Testing | Spotted PL-W34BYBQG6F 26101 | -3/Testing | Found Prototype Protection 26118 | -3/Testing | Fabricated Exp. Sensor Array? 26185 | -3/Testing | Lost 5 parts (1p2u2w) 26185 | -3/Testing | Found Prototype Energy Cannon 26198 | -3/Testing | Discovered new exit (range 10) 26200 | -3/Testing | Identified exit to Research 26201 | -3/Testing | Spotted PH-QIEO6YDYZS 26202 | -3/Testing | Entered Research 26202 | -2/Research | Evolved 2 slots: Utility x2 26213 | -2/Research | Identified exit to Quarantine 26216 | -2/Research | Found Fusion Bomb Launcher 26235 | -2/Research | Identified Imp. Potential Cannon 26235 | -2/Research | Identified Centrium Heavy Armor Plating 26447 | -2/Research | Build established: Wizard-Sprinter 26524 | -2/Research | Discovered new exit (range 4) 26524 | -2/Research | Identified exit to Access 26589 | -2/Research | Fabricated Exp. Q-thruster (x1) 26836 | -2/Research | Repaired Electron Diverter? 26913 | -2/Research | Found Prototype Launcher 27025 | -2/Research | Discovered exit to Access (range 10) 27142 | -2/Research | Discovered exit to Access (range 15) 27355 | -2/Research | Entered Quarantine 27367 | -2/Quarantine | Found Alien Artifact 27389 | -2/Quarantine | Identified Subatomic Replicator 27389 | -2/Quarantine | Identified Enh. Gamma Bomb Array 27395 | -2/Quarantine | Discovered exit to Access (range 16) 27403 | -2/Quarantine | Found Alien Slashing Weapon 27459 | -2/Quarantine | Found Alien Artifact 27459 | -2/Quarantine | Identified Hpw. Transdimensional Reconstructor 27459 | -2/Quarantine | Warped through subspace 27479 | -2/Quarantine | Found Alien Artifact 27515 | -2/Quarantine | Identified Core Reset Matrix 27673 | -2/Quarantine | Spotted Fortress 27691 | -2/Quarantine | Discovered new exit (range 6) 27692 | -2/Quarantine | Identified exit to Section 7 27702 | -2/Quarantine | Entered Section 7 27714 | -2/Section 7 | Spotted S7 Guard 27738 | -2/Section 7 | Found Alien Artifact 27738 | -2/Section 7 | Identified Core Regenerator 27738 | -2/Section 7 | Used Core Regenerator, restored core integrity (+298) 27747 | -2/Section 7 | Found Integrated Reactor 27747 | -2/Section 7 | Installed Integrated Reactor, increased core energy generation (+2%) 27751 | -2/Section 7 | Discovered exit to Access (range 16) 27765 | -2/Section 7 | Found Alien Artifact 27765 | -2/Section 7 | Identified Integrity Redistributor 27765 | -2/Section 7 | Used Integrity Redistributor, redistributed integrity from core (-46) 27778 | -2/Section 7 | Found Integrated Reactor 27778 | -2/Section 7 | Installed Integrated Reactor, increased core energy generation (+2%) 27900 | -2/Section 7 | Identified Sigix Broadsword 27953 | -2/Section 7 | Warped through subspace 27983 | -2/Section 7 | Lost 3 parts (1n1u1w) 28001 | -2/Section 7 | Spotted Alpha 7 28002 | -2/Section 7 | Spotted Alpha 7 28032 | -2/Section 7 | Spotted Executioner 28053 | -2/Section 7 | Found Alien Artifact 28053 | -2/Section 7 | Identified Matter Drive 28060 | -2/Section 7 | Found Transdimensional Reconstructor 28063 | -2/Section 7 | Found Alien Artifact 28063 | -2/Section 7 | Identified Terrabomb 28063 | -2/Section 7 | Used Terrabomb 28083 | -2/Section 7 | Spotted Executioner 28099 | -2/Section 7 | Spotted Striker 28105 | -2/Section 7 | Spotted B-90 Cyclops 28128 | -2/Section 7 | Entered Access 28128 | -1/Access | Evolved 2 slots: Propulsion x1, Utility x1 28184 | -1/Access | Central database locked down 28186 | -1/Access | Identified exit to Surface 28190 | -1/Access | Discovered new exit (range 8) 28256 | -1/Access | Repaired Exp. Sensor Array 28298 | -1/Access | Found Exp. Melee Analysis Suite 28616 | -1/Access | Fabricated Femtoactuators (x1) 28639 | *** | Escaped! Last Messages --------------- 28542_ Connecting with Fabricator... >>Load(Femtoactuators) Uploading Femtoactuators schematic... Loaded successfully: Femtoactuators Rating: 9p Time: 74 Matter: 417 Initiate build sequence. >>Build Building Femtoactuators... ETC: 74 28616_ Fabricator completes Femtoactuators. 28624_ Imp. Diametric Drive destroyed. 28627_ Exp. Sensor Array destroyed. 28627_ Slug penetrates Fabricator. 28627_ Y-72 Warden destroyed. 28630_ Acquired 99 matter. 28630_ Acquired Femtoactuators. 28632_ Connecting with Fabricator... Map ----- +----------------------------------------------------+ | ????# """""" #????????????????????????????? | | ????# """""" #????????????????????????????? | | ????# "" #????????????????????????????? | | ????# "" #????????????????????????????? | | ????# #????????????????????????????? | | ????# #????????????????????????????? | | ?###########+########????????????????????????????? | | ?# # #??????????????????????????????????? | | "# * + #??????????????????????????????????? | | + # #??????????????????????????????????? | | # # #??????????????????????????????????? | | ?# ## ##??????????????????????????????????? | | ?# ## #???????????????????????????????????? | | ?# ## #???????????????????????????????????? | | ?# ## #???????????????????????????????????? | | ?######+### #???????????????????????????????????? | | ####### #?# #???????????????????????????????????? | | + ### #???????????????????????????????????? | | ####*[# #?????###???????????????????????????? | | #??####% ####### ##########??????????????????? | | #?????# !"""T""" "??????????????????? | | #?????# """ """ "??????????????????? | | "" #?????# "??????????????????? | | "" #?????# "??????????????????? | | "" #?????# "" "??????????????????? | | "" #?????# @" "??????????????????? | | "" #?????# "??????????????????? | | #?????# "??????????????????? | | #?????# "??????????????????? | | #####?????# "??????????????????? | | ??????????# ####### ##########??????????????????? | | ??????????# #?????###???????????????????????????? | | ??????????# ##############??????????????????????? | | ??????????# # ! #??????????????????????? | | ??????????# # #??????????????????????? | | ??????????+ + #??????????????????????? | | ??????????# # #??????????????????????? | | ??????????# # """ #??????????????????????? | | ??????????# + """ #??????????????????????? | | ??????????# # """ #??????????????????????? | | ??????????# # * F" #??????????????????????? | | ??????????# # ! """ #??????????????????????? | | ??????????# # !["" #??????????????????????? | | ??????????# # #??????????????????????? | | ??????????# # #??????????????????????? | | ??????????# ##############??????????????????????? | | ??????????# ????????????????????????????????????? | | ??????????# ????????????????????????????????????? | | ??????????? ????????????????????????????????????? | | ??????????? ????????????????????????????????????? | +----------------------------------------------------+ Best States ------------- Heat Dissipation 85 Energy Generation 48 Energy Capacity 1970 Matter Stores 399 Matter Capacity 800 Sight Range 16 Robot Scan Range 30 Terrain Scan Density 210 Jamming Range 16 Cloak Strength 2 Additional Mass Support 10 Armor Coverage 3950 Resistance: TH 15 Resistance: EX 25 Resistance: EM 90 Core Shielding 40 Weapon Shielding 100 Evasion (%) 77 Melee Accuracy 18 Core Analysis 10 Armor Integrity Analysis 66 Recoil Reduction 2 Matter Filtering 50 Salvage Targeting 8 Offensive Hacking 54 Defensive Hacking 40 Item Schematics ----------------- Lrg. Storage Unit | -8/Materials | Scanalyzed Lgt. Antimatter Reactor | -7/Factory | Downloaded Adv. EMP Blaster | -7/Factory | Scanalyzed Exp. Flexi-carbon Leg | -7/Data Miner | Free Exp. Targeting Computer | -7/Data Miner | Free Exp. Cesium-ion Thruster | -7/Data Miner | Free Exp. Terrain Scan Processor | -7/Data Miner | Free Lgt. Regenerative Plating | -7/Data Miner | Free Combat Drone Bay | -7/Data Miner | Free Cmb. Gravmag System | -7/Data Miner | Free Exp. Sensor Array | -5/Factory | Hacked Assault Drone Bay | -5/Zhirov | Free Exp. Heat Sink | -5/Zhirov | Free Exp. Optical Array | -5/Zhirov | Free Imp. Arc Thrower | -5/Zhirov | Free Imp. Matter Neutralizer | -3/Testing | Scanalyzed Exp. Q-thruster | -2/Research | Hacked Nanoactuators | -2/Research | Scanalyzed Mni. Fusion Reactor | -2/Quarantine | Hacked Imp. Fusion Compressor | -2/Quarantine | Hacked Quantum Shading Machine | -2/Section 7 | Hacked Exp. Melee Analysis Suite | -2/Section 7 | Hacked Femtoactuators | -1/Access | Hacked Robot Schematics ------------------ S-27 Virus | -7/Data Miner | Free G-50 Soldier | -7/Data Miner | Free X-72 Disruptor | -7/Data Miner | Free H-66 Slayer | -7/Data Miner | Free P-70 Sage | -7/Data Miner | Free I-36 Angel | -7/Data Miner | Free Fabricated ------------ B-48 Gladiator | x3 | -7/Factory | Preloaded Adv. EMP Blaster | x1 | -5/Factory Exp. Cesium-ion Thruster | x1 | -5/Factory Exp. Cesium-ion Thruster | x1 | -5/Factory Exp. Sensor Array | x1 | -3/Testing Exp. Q-thruster | x1 | -2/Research Femtoactuators | x1 | -1/Access Alien Tech Used ----------------- Integrated Reactor High-powered Transdimensional Reconstructor Core Regenerator Integrity Redistributor Transdimensional Reconstructor Matter Drive Terrabomb Achievements -------------- None Challenges ------------ None Game ------ Seed HeartSmartbombDriver Manual? 0 Play Time 06:04:55 Cumulative 226.8 hours Start 2020.09.11 @ 20:49:15 End 2020.09.12 @ 15:00:42 Sessions 7 Manual Loads 0 Difficulty Rogue Special Mode None Game No. 123 Rogue 123 Adventurer 0 Explorer 0 Win Type 0 Total 9 Types 7/0/1/1/0/0/0 Lore% 65 Gallery% 82 Achievement% 64 Wizard Run 0 Options --------- ASCII 0 Keyboard 0 Movement Mouse Keybinds 0 Fullscreen 1 Font 24/Smallcaps Map View 76x50 Tactical HUD 1 Map Filters NONE Filters NONE Steam 1 RUN: 371a4e8e-eeb7-4b53-b055-95f4f89a9617